bitfinex/quotes_BTCUSD_20250529
["timestamp","ask_amount","ask_price","bid_price","bid_amount"]
[1748545946754,0.99790928,105950.0,105940.0,0.00119906]
[1748545946965,1.09798928,105950.0,105940.0,0.00119906]
[1748545948176,0.68998928,105950.0,105940.0,0.00119906]
[1748545948416,1.50590928,105950.0,105940.0,0.00119906]
[1748545949150,1.52045013,105950.0,105940.0,0.00119906]
[1748545949392,0.29452522,105940.0,105930.0,4.923e-05]
[1748545949599,0.38557917,105940.0,105930.0,4.923e-05]
[1748545950055,0.33557917,105940.0,105930.0,4.923e-05]
[1748545951200,0.33957917,105940.0,105930.0,4.923e-05]
[1748545951446,0.35881723,105940.0,105930.0,4.923e-05]
[1748545952311,0.36081723,105940.0,105930.0,4.923e-05]
[1748545952955,0.36063253,105940.0,105930.0,4.923e-05]
[1748545953417,0.3604782,105940.0,105930.0,4.923e-05]
[1748545956040,0.3604782,105940.0,105930.0,0.00022859]
[1748545957152,0.3642572,105940.0,105930.0,0.00022859]
[1748545958050,0.43879805,105940.0,105930.0,0.00022859]
[1748545958263,0.56357299,105940.0,105930.0,0.00022859]
[1748545958494,5.87043105,105940.0,105930.0,0.00022859]
[1748545958710,5.84384599,105940.0,105930.0,0.00022859]
[1748545959166,5.84784599,105940.0,105930.0,0.00022859]
[1748545959831,5.84384599,105940.0,105930.0,0.00022859]
[1748545960052,5.84684599,105940.0,105930.0,0.00122859]
[1748545960258,5.85084599,105940.0,105930.0,0.00222859]
[1748545960703,5.74748599,105940.0,105930.0,0.00122859]
[1748545960921,5.84699721,105940.0,105930.0,0.00222859]
[1748545961140,5.75448599,105940.0,105930.0,0.00222859]
[1748545961361,0.73570393,105930.0,105920.0,0.00017563]
[1748545961588,0.82675788,105930.0,105920.0,0.00031517]
[1748545962574,0.82675788,105930.0,105920.0,0.00131517]
[1748545962808,0.83075788,105930.0,105920.0,0.00131517]
[1748545963047,5.9255421,105930.0,105920.0,0.00131517]
[1748545963286,5.83903088,105930.0,105920.0,0.00231517]
[1748545966476,5.86444582,105930.0,105920.0,0.00231517]
[1748545968502,5.87546026,105930.0,105920.0,0.00231517]
[1748545968990,5.82925685,105930.0,105920.0,0.00231517]
[1748545969915,5.97176807,105930.0,105920.0,0.00231517]
[1748545970144,0.6572035,105920.0,105910.0,0.0002]
[1748545970357,0.84721745,105920.0,105910.0,0.0002]
[1748545971264,0.85837449,105920.0,105910.0,0.0002]
[1748545971923,0.86137449,105920.0,105910.0,0.0002]
[1748545972392,5.86864749,105920.0,105910.0,0.0012]
[1748545972618,6.17772749,105920.0,105910.0,0.0012]
[1748545972843,6.17755667,105920.0,105910.0,0.0012]
[1748545973305,6.17755667,105920.0,105880.0,0.0001]
[1748545973306,0.50417346,105910.0,105880.0,0.0001]
[1748545973522,0.50417346,105910.0,105840.0,0.55251284]
[1748545973523,0.56179368,105850.0,105840.0,0.00701284]
[1748545973742,5.59611383,105850.0,105810.0,0.0001]
[1748545973967,5.59611383,105850.0,105800.0,0.08811561]
[1748545973968,0.19846877,105810.0,105800.0,0.00975211]
[1748545974223,0.19846877,105810.0,105800.0,0.05525211]
[1748545974499,0.19846877,105810.0,105800.0,0.04743544]
[1748545974936,0.19846877,105810.0,105800.0,0.00193544]
[1748545975164,0.19846877,105810.0,105800.0,0.00242553]
[1748545975386,0.19836435,105810.0,105800.0,0.00342553]
[1748545976796,0.19836435,105810.0,105800.0,0.00442553]
[1748545977019,0.19920601,105810.0,105800.0,0.00442553]
[1748545977478,0.29025996,105810.0,105800.0,0.00442553]
[1748545977716,0.29025996,105810.0,105800.0,0.00433966]
[1748545978198,0.31155996,105810.0,105800.0,0.00433966]
[1748545978469,0.29025996,105810.0,105800.0,0.00433966]
[1748545978716,0.31155996,105810.0,105800.0,0.00433966]
[1748545978961,0.33415996,105810.0,105800.0,0.00433966]
[1748545979683,0.67315996,105810.0,105800.0,0.00233966]
[1748545979921,0.68115996,105810.0,105800.0,0.00333966]
[1748545980167,0.67715996,105810.0,105800.0,0.00333966]
[1748545980438,0.67315996,105810.0,105800.0,0.00233966]
[1748545980679,0.67901802,105810.0,105800.0,0.00333966]
[1748545981171,0.98839802,105810.0,105800.0,0.00333966]
[1748545981424,0.72755357,105810.0,105800.0,0.00333966]
[1748545981675,1.04225802,105810.0,105800.0,0.00333966]
[1748545981902,1.04202905,105810.0,105800.0,0.00333966]
[1748545982393,0.67878905,105810.0,105800.0,0.00232266]
[1748545982633,1.03454905,105810.0,105800.0,0.00232266]
[1748545983076,0.67878905,105810.0,105800.0,0.00232266]
[1748545983339,1.03477696,105810.0,105800.0,0.00232266]
[1748545983881,0.6785431,105810.0,105800.0,0.00232266]
[1748545984326,1.0373831,105810.0,105800.0,0.00232266]
[1748545984547,0.6785431,105810.0,105800.0,0.00232266]
[1748545984778,0.6346431,105810.0,105800.0,0.00232266]
[1748545984994,0.9936031,105810.0,105800.0,0.00232266]
[1748545985218,0.6346431,105810.0,105800.0,0.00232266]
[1748545985465,0.9939231,105810.0,105800.0,0.00232266]
[1748545985684,0.9937631,105810.0,105800.0,0.00232266]
[1748545986344,0.6346431,105810.0,105800.0,0.00232266]
[1748545986774,0.6884431,105810.0,105800.0,0.00232266]
[1748545986988,1.0476031,105810.0,105800.0,0.00232266]
[1748545987208,0.6784431,105810.0,105800.0,0.00232266]
[1748545987442,0.9938031,105810.0,105800.0,0.00232266]
[1748545987662,0.9938031,105810.0,105800.0,0.00242441]
[1748545987663,0.9939631,105810.0,105800.0,0.00242441]
[1748545987880,0.6346431,105810.0,105800.0,0.00242441]
[1748545988113,0.9938431,105810.0,105800.0,0.00242441]
[1748545988328,0.6448391,105810.0,105800.0,0.00242441]
[1748545988550,1.0042791,105810.0,105800.0,0.00242441]
[1748545989065,1.0043591,105810.0,105800.0,0.00242441]
[1748545990376,1.0267591,105810.0,105800.0,0.00242441]
[1748545990592,1.0263591,105810.0,105800.0,0.00242441]
[1748545991024,0.78275032,105810.0,105800.0,0.00242441]
[1748545991241,0.6902391,105810.0,105800.0,0.00242441]
[1748545991935,1.0100791,105810.0,105800.0,0.00242441]
[1748545992153,1.0102391,105810.0,105800.0,0.00242441]
[1748545992366,1.0100791,105810.0,105800.0,0.00242441]
[1748545994368,1.0339191,105810.0,105800.0,0.00242441]
[1748545994711,0.6448391,105810.0,105800.0,0.00242441]
[1748545995332,1.0113191,105810.0,105800.0,0.00242441]
[1748545995967,0.6448391,105810.0,105800.0,0.00242441]
[1748545996183,1.0123191,105810.0,105800.0,0.00242441]
[1748545996406,1.0348191,105810.0,105800.0,0.00242441]
[1748545996692,0.6673391,105810.0,105800.0,0.00242441]
[1748545996899,1.0346191,105810.0,105800.0,0.00242441]
[1748545997351,1.0558191,105810.0,105800.0,0.00242441]
[1748545998661,1.06448579,105810.0,105800.0,0.00242441]
[1748545999510,1.04328498,105810.0,105800.0,0.00242441]
[1748545999949,1.04329449,105810.0,105800.0,0.00242441]
[1748546000361,0.69951449,105810.0,105800.0,0.00242441]
[1748546000573,1.0578391,105810.0,105800.0,0.00242441]
[1748546000778,1.06651449,105810.0,105800.0,0.00242441]
[1748546001210,0.69952607,105810.0,105800.0,0.00242441]
[1748546001424,1.0571591,105810.0,105800.0,0.00242441]
[1748546001650,1.06584607,105810.0,105800.0,0.00242441]
[1748546002166,1.0571591,105810.0,105800.0,0.00242441]
[1748546002431,1.06586266,105810.0,105800.0,0.00252441]
[1748546002724,1.06586237,105810.0,105800.0,0.00252441]
[1748546003034,1.06586214,105810.0,105800.0,0.00252441]
[1748546003217,1.0571591,105810.0,105800.0,0.00252441]
[1748546003447,1.08093887,105810.0,105800.0,0.00252441]
[1748546004430,1.09093887,105810.0,105800.0,0.00252441]
[1748546004886,0.1471082,105800.0,105790.0,4e-05]
[1748546005119,0.79200427,105800.0,105790.0,4e-05]
[1748546005362,0.7902576,105800.0,105790.0,4e-05]
[1748546006530,0.79231989,105800.0,105790.0,0.00104]
[1748546006977,0.79431989,105800.0,105790.0,0.00104]
[1748546007453,0.79431989,105800.0,105790.0,0.00095492]
[1748546007670,0.7942073,105800.0,105790.0,0.00105492]
[1748546007900,0.41973581,105800.0,105790.0,0.00105492]
[1748546008114,0.40856757,105800.0,105790.0,0.04465492]
[1748546008325,0.40856757,105800.0,105790.0,0.05194831]
[1748546008326,0.40845101,105800.0,105790.0,0.05194831]
[1748546008541,0.39951642,105800.0,105790.0,0.05194831]
[1748546009196,0.77241101,105800.0,105790.0,0.00834831]
[1748546009906,0.77221733,105800.0,105790.0,0.00834831]
[1748546010337,0.76328274,105800.0,105790.0,0.00834831]
[1748546010560,0.77222079,105800.0,105790.0,0.00834831]
[1748546010777,0.77222079,105800.0,105790.0,0.00105492]
[1748546011418,0.77086079,105800.0,105790.0,0.00105492]
[1748546011651,0.77086211,105800.0,105790.0,0.00105492]
[1748546012607,0.77071108,105800.0,105790.0,0.00105492]
[1748546012834,1.13231107,105800.0,105790.0,0.00105492]
[1748546013059,1.15680686,105800.0,105790.0,0.00105492]
[1748546013292,1.15680686,105800.0,105790.0,0.00115492]
[1748546013524,0.79420686,105800.0,105790.0,0.00115492]
[1748546013755,1.11172686,105800.0,105790.0,0.00115492]
[1748546013972,1.11160686,105800.0,105790.0,0.00115492]
[1748546014413,0.75040556,105800.0,105790.0,0.00115492]
[1748546014905,1.11140556,105800.0,105790.0,0.00115492]
[1748546015322,1.11112556,105800.0,105790.0,0.00115492]
[1748546016014,0.75040556,105800.0,105790.0,0.00115492]
[1748546016503,1.11084556,105800.0,105790.0,0.00115492]
[1748546016946,0.75040556,105800.0,105790.0,0.00115492]
[1748546017193,1.11064556,105800.0,105790.0,0.00115492]
[1748546017615,1.11064556,105800.0,105790.0,0.00129343]
[1748546018024,0.75040556,105800.0,105790.0,0.00129343]
[1748546018235,1.11024556,105800.0,105790.0,0.00129343]
[1748546018493,1.09907405,105800.0,105790.0,0.00129343]
[1748546019326,1.09839405,105800.0,105790.0,0.00129343]
[1748546019957,1.09811405,105800.0,105790.0,0.00129343]
[1748546020601,0.74796249,105800.0,105790.0,0.00129343]
[1748546021041,0.74796249,105800.0,105790.0,0.02279343]
[1748546021042,0.76660249,105800.0,105790.0,0.02279343]
[1748546021252,0.76660249,105800.0,105790.0,0.04609343]
[1748546021253,0.75766469,105800.0,105790.0,0.04609343]
[1748546021454,0.74893625,105800.0,105790.0,0.05354067]
[1748546021656,0.7576647,105800.0,105790.0,0.05354067]
[1748546022495,0.7569447,105800.0,105790.0,0.05354067]
[1748546022712,0.3990247,105800.0,105790.0,0.05354067]
[1748546022922,0.7567847,105800.0,105790.0,0.05354067]
[1748546023134,0.75678431,105800.0,105790.0,0.05354067]
[1748546023333,0.75678433,105800.0,105790.0,0.05354067]
[1748546023546,0.75638433,105800.0,105790.0,0.05354067]
[1748546023758,0.39902433,105800.0,105790.0,0.05354067]
[1748546023968,0.75622433,105800.0,105790.0,0.05354067]
[1748546024595,0.75622416,105800.0,105790.0,0.05354067]
[1748546024838,0.75622416,105800.0,105790.0,0.03024067]
[1748546025269,0.75566416,105800.0,105790.0,0.03024067]
[1748546025502,0.39902416,105800.0,105790.0,0.05214067]
[1748546025746,0.75578433,105800.0,105790.0,0.05214067]
[1748546025959,0.74705625,105800.0,105790.0,0.05214067]
[1748546026199,0.75578433,105800.0,105790.0,0.05214067]
[1748546026405,0.39902398,105800.0,105790.0,0.05214067]
[1748546026611,0.75530398,105800.0,105790.0,0.05214067]
[1748546026830,1.13830398,105800.0,105790.0,0.00129343]
[1748546027049,1.1383031,105800.0,105790.0,0.00129343]
[1748546027254,1.0949431,105800.0,105790.0,0.00129343]
[1748546027466,1.09494306,105800.0,105790.0,0.00129343]
[1748546027674,1.09494349,105800.0,105790.0,0.00129343]
[1748546027883,1.08621625,105800.0,105790.0,0.00129343]
[1748546028523,1.0944633,105800.0,105790.0,0.00129343]
[1748546028964,0.73902305,105800.0,105790.0,0.00129343]
[1748546029188,1.08545625,105800.0,105790.0,0.00129343]
[1748546029391,1.09406305,105800.0,105790.0,0.00129343]
[1748546029606,0.29817643,105770.0,105760.0,0.31326065]
[1748546029818,0.29817643,105770.0,105760.0,0.56219171]
[1748546030905,0.29866755,105770.0,105760.0,0.56219171]
[1748546031120,0.29966755,105770.0,105760.0,0.56519171]
[1748546031362,0.29966755,105770.0,105760.0,0.90519171]
[1748546031363,0.00149112,105770.0,105760.0,0.90519171]
[1748546031573,0.21742846,105790.0,105780.0,0.35454085]
[1748546031804,0.19852416,105790.0,105780.0,0.54237849]
[1748546032036,0.19852416,105790.0,105780.0,1.02979026]
[1748546032259,0.19834542,105790.0,105780.0,1.21886191]
[1748546032479,0.19834542,105790.0,105780.0,1.02979026]
[1748546032697,0.20779766,105790.0,105780.0,1.25851549]
[1748546032910,0.19834488,105790.0,105780.0,1.25851549]
[1748546033127,0.22670186,105790.0,105780.0,1.25851549]
[1748546033375,0.22670186,105790.0,105780.0,1.26796898]
[1748546033585,0.22670178,105790.0,105780.0,1.75538075]
[1748546033810,0.22670178,105790.0,105780.0,1.74592726]
[1748546034040,0.21824981,105790.0,105780.0,1.54840203]
[1748546034254,0.21824981,105790.0,105780.0,1.75638057]
[1748546034476,0.20895808,105790.0,105780.0,1.76583379]
[1748546034703,0.21741059,105790.0,105780.0,1.75538075]
[1748546034958,0.22668885,105790.0,105780.0,1.86934141]
[1748546035181,0.21823626,105790.0,105780.0,1.87879463]
[1748546035601,0.22768885,105790.0,105780.0,1.86934141]
[1748546036280,0.22768885,105790.0,105780.0,1.8504347]
[1748546036511,0.20895879,105790.0,105780.0,1.02440421]
[1748546036717,0.20895879,105790.0,105780.0,1.34996944]
[1748546036932,0.20895879,105790.0,105780.0,1.35942293]
[1748546037141,0.21841147,105790.0,105780.0,1.15144421]
[1748546037319,0.2183094,105790.0,105780.0,1.15144421]
[1748546037553,0.2183094,105790.0,105780.0,1.16089779]
[1748546037998,0.2183094,105790.0,105780.0,1.15144421]
[1748546038209,0.2183094,105790.0,105780.0,1.06035026]
[1748546038210,0.20885698,105790.0,105780.0,1.06035026]
[1748546038877,0.20885698,105790.0,105780.0,0.44593849]
[1748546039089,0.20885698,105790.0,105780.0,0.52819764]
[1748546039304,0.20885698,105790.0,105780.0,0.54273849]
[1748546040161,0.20885698,105790.0,105780.0,1.03015026]
[1748546040374,0.20885698,105790.0,105780.0,0.90315026]
[1748546040992,0.55933698,105790.0,105780.0,0.40119764]
[1748546041211,0.55933698,105790.0,105780.0,0.41573849]
[1748546041423,0.55933698,105790.0,105780.0,0.90315026]
[1748546041862,0.43519182,105790.0,105780.0,0.90315026]
[1748546042067,0.4350781,105790.0,105780.0,0.90315026]
[1748546042281,0.4350781,105790.0,105780.0,0.92245026]
[1748546042716,0.4350781,105790.0,105780.0,0.90315026]
[1748546042938,0.64582355,105790.0,105780.0,0.004]
[1748546043395,0.17565205,105790.0,105780.0,0.004]
[1748546043611,0.62480207,105790.0,105780.0,0.50595262]
[1748546043837,0.52516946,105790.0,105780.0,0.50595262]
[1748546044057,0.52516946,105790.0,105780.0,0.06946611]
[1748546044278,0.52516946,105790.0,105780.0,0.01854085]
[1748546044503,0.52516946,105790.0,105780.0,0.50595262]
[1748546044504,0.18410812,105790.0,105780.0,0.50595262]
[1748546044717,0.53410812,105790.0,105780.0,0.01854085]
[1748546044927,0.53410812,105790.0,105780.0,0.50595262]
[1748546045162,0.53410812,105790.0,105780.0,0.50611016]
[1748546045383,0.53410812,105790.0,105780.0,0.55814118]
[1748546045601,0.48410812,105790.0,105780.0,0.07072941]
[1748546046013,0.43447551,105790.0,105780.0,0.07072941]
[1748546047004,0.52552946,105790.0,105780.0,0.07072941]
[1748546047212,0.52552946,105790.0,105780.0,0.01869839]
[1748546047213,0.57142946,105790.0,105780.0,0.01869839]
[1748546048837,0.57142946,105790.0,105780.0,0.00415754]
[1748546050773,0.69842946,105790.0,105780.0,0.00415754]
[1748546051023,1.11362096,105790.0,105780.0,0.00415754]
[1748546051256,0.61386568,105780.0,105770.0,0.0033]
[1748546051494,1.11323963,105780.0,105770.0,0.0033]
[1748546051735,1.58935963,105780.0,105770.0,0.0033]
[1748546051979,1.6005198,105780.0,105770.0,0.0033]
[1748546052221,6.61172804,105780.0,105770.0,0.0033]
[1748546052468,6.61172804,105780.0,105760.0,0.00114788]
[1748546052469,0.24244382,105770.0,105760.0,0.00114788]
[1748546052710,0.40868927,105770.0,105760.0,0.00114788]
[1748546052940,0.46578777,105770.0,105760.0,0.00114788]
[1748546053198,0.40868927,105770.0,105760.0,0.00114788]
[1748546053685,0.5819626,105760.0,105750.0,0.04020915]
[1748546053916,1.02133749,105760.0,105750.0,0.04070027]
[1748546054422,1.01208136,105760.0,105650.0,0.07259023]
[1748546054636,1.01208136,105760.0,105660.0,0.84637032]
[1748546054637,0.0094627,105670.0,105660.0,0.84637032]
[1748546054864,0.0094627,105670.0,105660.0,0.33525457]
[1748546054865,0.00946261,105670.0,105660.0,0.33525457]
[1748546055092,0.00946315,105670.0,105660.0,1.12868469]
[1748546055370,0.10909397,105690.0,105680.0,0.01892477]
[1748546055594,0.3116687,105700.0,105680.0,0.35182781]
[1748546055595,0.20014658,105700.0,105680.0,0.35182781]
[1748546055818,0.12855292,105700.0,105680.0,1.15794073]
[1748546056044,0.10963261,105700.0,105690.0,0.60976575]
[1748546056271,0.22009764,105700.0,105690.0,0.70227697]
[1748546056492,0.0104906,105700.0,105690.0,0.09251122]
[1748546056715,0.10958332,105700.0,105690.0,0.93443447]
[1748546056963,0.10012321,105700.0,105690.0,0.94389574]
[1748546057198,0.0004906,105700.0,105690.0,1.28389574]
[1748546057444,0.02871414,105700.0,105690.0,1.28389574]
[1748546057682,0.02125368,105700.0,105690.0,1.29189574]
[1748546057960,0.03071405,105700.0,105690.0,1.29189574]
[1748546058184,0.03056686,105700.0,105690.0,1.29189574]
[1748546058954,0.03056678,105700.0,105690.0,1.29189574]
[1748546059185,0.04002733,105700.0,105690.0,1.29189574]
[1748546059433,0.04002733,105700.0,105690.0,0.44051122]
[1748546059434,0.23924208,105700.0,105690.0,0.44051122]
[1748546059687,0.35007634,105700.0,105690.0,0.008]
[1748546059901,0.69835634,105700.0,105690.0,0.008]
[1748546060596,0.68165634,105700.0,105690.0,0.02254085]
[1748546060822,0.33137634,105700.0,105690.0,0.07777151]
[1748546061036,0.30937634,105700.0,105690.0,0.07877151]
[1748546061255,0.31037634,105700.0,105690.0,0.07977151]
[1748546062625,0.34877634,105700.0,105690.0,0.07977151]
[1748546062857,0.34877634,105700.0,105690.0,0.01654085]
[1748546064036,0.34877634,105700.0,105690.0,0.14002085]
[1748546064738,0.34877634,105700.0,105690.0,0.01654085]
[1748546065193,0.34877634,105700.0,105690.0,0.14002085]
[1748546066266,0.34877634,105700.0,105690.0,0.01654085]
[1748546066704,0.34877634,105700.0,105690.0,0.14006085]
[1748546067135,0.34877634,105700.0,105690.0,0.15406693]
[1748546068042,0.40000895,105700.0,105690.0,0.15406693]
[1748546068271,0.308955,105700.0,105690.0,0.95306534]
[1748546068523,0.20932239,105700.0,105690.0,0.76383268]
[1748546068739,0.20932239,105700.0,105690.0,0.97198851]
[1748546068954,0.20932239,105700.0,105690.0,1.32144996]
[1748546068955,0.01064691,105700.0,105690.0,1.32144996]
[1748546069186,0.02010667,105700.0,105690.0,1.38237223]
[1748546069403,0.01064638,105700.0,105690.0,1.47342618]
[1748546069619,0.02010667,105700.0,105690.0,1.47342618]
[1748546069835,0.02010649,105700.0,105690.0,1.45772618]
[1748546070254,0.02956669,105700.0,105690.0,1.45672618]
[1748546070460,0.00964629,105700.0,105690.0,1.45572618]
[1748546070950,0.21878206,105700.0,105690.0,1.22422996]
[1748546071171,0.02010676,105700.0,105690.0,1.65762851]
[1748546071384,0.21878206,105700.0,105690.0,1.66708978]
[1748546071606,0.21978206,105700.0,105690.0,1.67008987]
[1748546071821,0.21978206,105700.0,105690.0,1.67955114]
[1748546072037,0.21978206,105700.0,105690.0,1.67008987]
[1748546072769,0.21032195,105700.0,105690.0,1.06032412]
[1748546072989,0.21032195,105700.0,105690.0,1.66062851]
[1748546073202,0.20086166,105700.0,105690.0,0.84270693]
[1748546073438,0.20086166,105700.0,105690.0,1.65116688]
[1748546073887,0.20086166,105700.0,105690.0,1.65116697]
[1748546074328,0.21032195,105700.0,105690.0,1.65116697]
[1748546074534,0.21978268,105700.0,105690.0,1.45258493]
[1748546074749,0.21032195,105700.0,105690.0,1.64181759]
[1748546074961,0.21978197,105700.0,105690.0,1.45258493]
[1748546075175,0.22924261,105700.0,105690.0,1.45258493]
[1748546075389,0.2292427,105700.0,105690.0,1.54363888]
[1748546075597,0.21978197,105700.0,105690.0,1.54363888]
[1748546075807,0.21978197,105700.0,105690.0,1.56256205]
[1748546076029,0.2292427,105700.0,105690.0,1.55310051]
[1748546076282,0.2292427,105700.0,105690.0,1.54363888]
[1748546076930,0.2292427,105700.0,105690.0,1.54373888]
[1748546079282,0.21978268,105700.0,105690.0,1.54373888]
[1748546080066,0.20086184,105700.0,105690.0,1.45000493]
[1748546081686,0.20086184,105700.0,105690.0,1.10704493]
[1748546083611,0.20086184,105700.0,105690.0,0.37375918]
[1748546084677,0.22786184,105700.0,105690.0,0.37375918]
[1748546085321,0.22786184,105700.0,105690.0,0.98352493]
[1748546085758,0.20086184,105700.0,105690.0,0.98352493]
[1748546086512,0.19140111,105700.0,105690.0,0.98352493]
[1748546086514,0.21680111,105700.0,105690.0,1.10348493]
[1748546086944,0.21680111,105700.0,105690.0,0.49371918]
[1748546087674,0.21680111,105700.0,105690.0,0.48871918]
[1748546089678,0.24450111,105700.0,105690.0,0.48871918]
[1748546092269,0.24450111,105700.0,105690.0,0.36875918]
[1748546092480,0.24450111,105700.0,105690.0,0.48871918]
[1748546092714,0.24450111,105700.0,105690.0,0.36875918]
[1748546092949,0.24450111,105700.0,105690.0,0.48871918]
[1748546093369,0.24450111,105700.0,105690.0,1.36875918]
[1748546093795,0.24450111,105700.0,105690.0,1.48871918]
[1748546094039,0.24450111,105700.0,105690.0,1.97675377]
[1748546096825,0.24450111,105700.0,105690.0,1.48871918]
[1748546097041,0.31969261,105700.0,105690.0,1.48871918]
[1748546097252,0.24450111,105700.0,105690.0,1.98690308]
[1748546097459,0.11543673,105700.0,105690.0,1.98690308]
[1748546098492,0.11543673,105700.0,105690.0,1.49886849]
[1748546098700,0.21506934,105700.0,105690.0,1.03890849]
[1748546099778,0.38131479,105700.0,105690.0,0.87852764]
[1748546099995,0.65312281,105700.0,105690.0,0.87852764]
[1748546100214,0.96068218,105700.0,105690.0,0.86837833]
[1748546100416,0.96948446,105700.0,105690.0,0.86837833]
[1748546100638,0.96948253,105700.0,105690.0,0.95522616]
[1748546100858,0.29168218,105700.0,105690.0,0.95522616]
[1748546101084,0.62036218,105700.0,105690.0,0.96976701]
[1748546101570,0.62236218,105700.0,105690.0,0.97092262]
[1748546101768,0.62236218,105700.0,105690.0,0.97192262]
[1748546101988,0.52306099,105700.0,105690.0,0.97192262]
[1748546102201,0.71227574,105700.0,105690.0,0.97192262]
[1748546102420,0.71027574,105700.0,105690.0,0.97092262]
[1748546102630,0.71327574,105700.0,105690.0,0.95738177]
[1748546102863,1.05275574,105700.0,105690.0,0.87053394]
[1748546103311,0.71459574,105700.0,105690.0,0.87053394]
[1748546103525,1.05275574,105700.0,105690.0,0.87053394]
[1748546104513,0.71459574,105700.0,105690.0,0.87053394]
[1748546104714,0.71459574,105700.0,105690.0,0.95759733]
[1748546104923,1.07975574,105700.0,105690.0,0.95759733]
[1748546105359,1.00444424,105700.0,105690.0,0.95759733]
[1748546105762,1.00444424,105700.0,105690.0,0.97213818]
[1748546106122,1.00428424,105700.0,105690.0,0.97213818]
[1748546106339,0.66680424,105700.0,105690.0,0.95759733]
[1748546106562,0.32680424,105700.0,105690.0,0.95759733]
[1748546106842,0.32680424,105700.0,105690.0,0.97213818]
[1748546106843,0.31430791,105700.0,105690.0,0.97213818]
[1748546107060,0.69784925,105700.0,105690.0,0.97213818]
[1748546107668,0.67004925,105700.0,105690.0,0.97213818]
[1748546108249,0.5785953,105700.0,105690.0,0.97213818]
[1748546108677,0.5515953,105700.0,105690.0,0.97213818]
[1748546108891,0.5413953,105700.0,105690.0,0.97213818]
[1748546109092,0.5412753,105700.0,105690.0,0.97213818]
[1748546109996,0.30430791,105700.0,105690.0,0.97213818]
[1748546110208,0.64078791,105700.0,105690.0,0.97213818]
[1748546110430,0.30430791,105700.0,105690.0,0.97213818]
[1748546110653,0.5410753,105700.0,105690.0,0.97213818]
[1748546110864,0.2046753,105700.0,105690.0,0.97213818]
[1748546111080,0.30430791,105700.0,105690.0,0.97213818]
[1748546111292,0.30130791,105700.0,105690.0,0.97113818]
[1748546111513,1.09856075,105700.0,105690.0,0.86953394]
[1748546111775,1.09856075,105700.0,105690.0,0.87053394]
[1748546111776,0.76352075,105700.0,105690.0,0.87053394]
[1748546112012,1.10460075,105700.0,105690.0,0.87053394]
[1748546112218,0.76388075,105700.0,105690.0,0.95659733]
[1748546112466,0.76188075,105700.0,105690.0,0.95659733]
[1748546112669,0.76288075,105700.0,105690.0,0.97213818]
[1748546112927,0.45396186,105700.0,105690.0,0.97013818]
[1748546113153,0.69076186,105700.0,105690.0,0.97013818]
[1748546113377,0.5570753,105700.0,105690.0,0.97213818]
[1748546114333,0.5570753,105700.0,105690.0,0.95759733]
[1748546114334,0.69132925,105700.0,105690.0,0.95759733]
[1748546114547,0.69132925,105700.0,105690.0,0.97013818]
[1748546114548,0.68432925,105700.0,105690.0,0.97013818]
[1748546114762,0.68632925,105700.0,105690.0,0.97113818]
[1748546115217,0.69632925,105700.0,105690.0,0.97113818]
[1748546115437,0.68632925,105700.0,105690.0,0.97113818]
[1748546115697,0.64312925,105700.0,105690.0,0.97113818]
[1748546115925,0.64612925,105700.0,105690.0,0.97213818]
[1748546116382,0.2136753,105700.0,105690.0,0.97213818]
[1748546116592,0.5539953,105700.0,105690.0,0.97213818]
[1748546116792,0.5439953,105700.0,105690.0,0.97213818]
[1748546117024,0.2036753,105700.0,105690.0,0.97213818]
[1748546117232,0.5437553,105700.0,105690.0,0.97213818]
[1748546117853,0.2036753,105700.0,105690.0,0.97213818]
[1748546118058,0.5433553,105700.0,105690.0,0.97213818]
[1748546118993,0.5429953,105700.0,105690.0,0.97213818]
[1748546119434,0.2036753,105700.0,105690.0,0.97213818]
[1748546119666,0.64230791,105700.0,105690.0,0.97213818]
[1748546119885,0.30330791,105700.0,105690.0,1.31213818]
[1748546120141,0.64218791,105700.0,105690.0,1.31213818]
[1748546120363,0.005,105700.0,105690.0,2.47012684]
[1748546120574,0.20367477,105700.0,105690.0,2.28731639]
[1748546120804,0.005,105700.0,105690.0,2.72635188]
[1748546121022,0.005,105700.0,105690.0,2.74527415]
[1748546121249,0.20167477,105700.0,105690.0,2.73481324]
[1748546121452,0.003,105700.0,105690.0,2.74427433]
[1748546121666,0.20267477,105700.0,105690.0,2.74727442]
[1748546121876,0.20267477,105700.0,105690.0,2.73781324]
[1748546122104,0.20167477,105700.0,105690.0,2.74427433]
[1748546122315,0.19867477,105700.0,105690.0,2.74327433]
[1748546122523,0.19121475,105700.0,105690.0,2.75027442]
[1748546122755,0.19121475,105700.0,105690.0,2.75673542]
[1748546122756,0.002,105700.0,105690.0,2.75673542]
[1748546122982,0.001,105700.0,105690.0,3.16541551]
[1748546123201,0.002,105700.0,105690.0,3.17887651]
[1748546124390,0.62654138,105730.0,105710.0,0.02837844]
[1748546124391,0.05908994,105730.0,105710.0,0.02837844]
[1748546124601,0.20810942,105740.0,105720.0,0.74490003]
[1748546124842,0.20807582,105730.0,105720.0,1.43548612]
[1748546125058,0.29272501,105730.0,105720.0,1.60491955]
[1748546125280,0.28326732,105730.0,105720.0,1.61437787]
[1748546125498,0.28326732,105730.0,105720.0,1.59546105]
[1748546125709,0.29272501,105730.0,105720.0,1.60591955]
[1748546126148,0.28326732,105730.0,105720.0,1.61437796]
[1748546126365,0.08564883,105730.0,105720.0,1.62483628]
[1748546126574,0.09610616,105730.0,105720.0,1.62483628]
[1748546126794,0.08664874,105730.0,105720.0,1.62483628]
[1748546127013,0.002,105730.0,105720.0,1.62483628]
[1748546127251,0.001,105730.0,105720.0,1.62483628]
[1748546127542,0.01991475,105730.0,105720.0,1.62483628]
[1748546127805,0.03037217,105730.0,105720.0,1.62483628]
[1748546128050,0.02091466,105730.0,105720.0,1.62483628]
[1748546128260,0.21007573,105730.0,105720.0,1.61537796]
[1748546128519,0.29472582,105730.0,105720.0,0.51551578]
[1748546128763,0.29472582,105730.0,105720.0,1.17601235]
[1748546128988,0.29472582,105730.0,105720.0,1.20361235]
[1748546129258,0.29472582,105730.0,105720.0,0.76106895]
[1748546129499,0.33916831,105730.0,105720.0,0.02031536]
[1748546129724,0.33971053,105730.0,105720.0,0.02031536]
[1748546130171,0.76648448,105730.0,105720.0,0.001]
[1748546131383,0.63565164,105730.0,105720.0,0.01554085]
[1748546131588,0.58601903,105730.0,105720.0,0.10805207]
[1748546131801,0.63565164,105730.0,105720.0,0.10805207]
[1748546132034,0.63545164,105730.0,105720.0,0.10805207]
[1748546132273,0.53581903,105730.0,105720.0,0.01129729]
[1748546132501,0.30025164,105730.0,105720.0,0.01129729]
[1748546132707,0.20061903,105730.0,105720.0,0.01129729]
[1748546132916,0.20061903,105730.0,105720.0,0.02982416]
[1748546133136,0.21953378,105730.0,105720.0,1.3000551]
[1748546133361,0.21953378,105730.0,105720.0,1.29769095]
[1748546133569,0.21953369,105730.0,105720.0,1.29769095]
[1748546133776,0.002,105730.0,105720.0,1.34530768]
[1748546134225,0.002,105730.0,105720.0,1.35984853]
[1748546134609,0.01145742,105730.0,105720.0,1.35999357]